bitfinex/quotes_SOLUSD_20251201
["timestamp","ask_amount","ask_price","bid_price","bid_amount"]
[1764550705689,12.22841262,128.18,128.14,7.80350405]
[1764550705882,12.22841262,128.18,128.15,3.58]
[1764550706284,44.31012098,128.2,128.15,3.58]
[1764550706511,0.7,128.19,128.15,3.58]
[1764550706812,12.22841262,128.18,128.15,3.58]
[1764550707012,20.03013534,128.18,128.15,3.58]
[1764550707212,7.80172272,128.18,128.15,3.58]
[1764550707393,20.03013534,128.18,128.15,3.58]
[1764550708317,8.50172272,128.18,128.15,3.58]
[1764550708508,20.73013534,128.18,128.15,3.58]
[1764550708692,8.50172272,128.18,128.15,3.58]
[1764550708895,20.73013534,128.18,128.15,3.58]
[1764550709093,8.50172272,128.18,128.15,3.58]
[1764550709316,12.22841262,128.16,128.1,20.03426829]
[1764550709614,12.22841262,128.15,128.1,7.80585567]
[1764550709798,12.22841262,128.16,128.11,3.58]
[1764550710000,27.30961297,128.16,128.11,4.24]
[1764550710191,20.73115918,128.16,128.11,12.04572966]
[1764550710392,8.50274656,128.16,128.11,4.24]
[1764550710598,20.73115918,128.16,128.11,4.24]
[1764550710914,12.22841262,128.16,128.12,0.66]
[1764550711296,12.22841262,128.15,128.1,0.66]
[1764550711498,12.22841262,128.15,128.11,3.58]
[1764550711718,12.22841262,128.15,128.11,4.24]
[1764550712093,7.80396441,128.14,128.11,4.24]
[1764550712712,20.03188287,128.15,128.11,4.24]
[1764550713015,40.09090909,159.09,128.11,4.24]
[1764550713016,12.22841262,128.2,128.14,12.22841262]
[1764550713314,20.02872463,128.2,128.15,3.58]
[1764550713515,20.02872463,128.2,128.15,16.46841262]
[1764550713712,28.73727662,128.21,128.16,0.66]
[1764550713906,29.23727662,128.2,128.14,0.66]
[1764550714108,7.8009205,128.19,128.14,0.66]
[1764550714310,20.02933312,128.19,128.15,3.58]
[1764550714515,20.02933312,128.19,128.16,3.58]
[1764550714516,12.22841262,128.17,128.16,3.58]
[1764550714916,12.92841262,128.18,128.16,3.58]
[1764550715097,12.22841262,128.18,128.13,0.66]
[1764550715298,27.30322177,128.19,128.1,12.22841262]
[1764550715299,12.22841262,128.16,128.1,12.22841262]
[1764550715499,12.22841262,128.14,128.11,3.58]
[1764550716215,12.22841262,128.12,128.07,0.66]
[1764550716416,12.22841262,128.11,128.1,3.58]
[1764550716923,12.92841262,128.11,128.05,0.66]
[1764550717125,12.22841262,128.08,128.06,3.58]
[1764550717725,12.22841262,128.07,128.06,3.58]
[1764550717905,12.22841262,128.07,128.02,7.81117328]
[1764550718221,17.008864,128.06,128.03,3.58]
[1764550718400,12.22841262,128.04,128.03,3.58]
[1764550718815,12.92841262,128.04,128.03,3.58]
[1764550719032,29.23727662,128.04,128.03,3.58]
[1764550719818,16.308864,128.04,128.03,3.58]
[1764550720021,28.53727662,128.04,128.03,3.58]
[1764550720223,36.34733597,128.04,128.03,3.58]
[1764550721315,56.57248436,128.04,127.98,7.81321291]
[1764550721522,12.22841262,128.01,127.99,3.58]
[1764550722546,12.22841262,128.0,127.97,18.74]
[1764550722726,12.22841262,128.0,127.96,8.47437919]
[1764550722727,12.22841262,127.99,127.98,3.58]
[1764550723321,12.92841262,127.99,127.96,3.58]
[1764550723508,12.22841262,127.97,127.96,3.58]
[1764550723708,12.22841262,127.97,127.94,3.68]
[1764550723931,12.22841262,127.95,127.94,3.68]
[1764550724109,12.22841262,127.95,127.94,0.1]
[1764550724627,20.04396557,127.95,127.94,0.1]
[1764550724827,7.81555295,127.95,127.94,0.1]
[1764550725032,35.84052846,128.0,127.94,0.76]
[1764550725232,12.22841262,127.98,127.94,0.76]
[1764550725613,36.54052846,128.0,127.94,0.76]
[1764550725830,12.22841262,127.98,127.94,0.76]
[1764550726136,7.81366858,127.99,127.95,20.04396557]
[1764550726433,28.53727662,128.0,127.96,3.58]
[1764550726619,28.53727662,128.0,127.96,4.24]
[1764550726822,20.04092845,128.0,127.96,4.24]
[1764550727233,20.04092845,128.0,127.96,3.58]
[1764550727439,12.22841262,127.98,127.97,3.58]
[1764550727633,12.22841262,127.98,127.94,0.1]
[1764550727933,12.22841262,127.95,127.94,0.1]
[1764550728112,20.04396557,127.95,127.94,0.1]
[1764550728312,20.74396557,127.95,127.94,0.1]
[1764550728914,29.55391049,127.95,127.94,0.1]
[1764550729114,45.86277449,127.95,127.94,0.1]
[1764550729339,29.55391049,127.95,127.94,0.1]
[1764550729514,29.55391049,127.95,127.94,1e-08]
[1764550729918,16.308864,127.92,127.9,0.1]
[1764550730122,28.85635456,127.91,127.9,0.1]
[1764550730421,16.308864,127.88,127.85,0.1]
[1764550730612,12.22841262,127.86,127.85,0.1]
[1764550730817,21.73835754,127.86,127.85,0.1]
[1764550731623,12.22841262,127.86,127.85,0.1]
[1764550731826,7.81750784,127.92,127.85,20.81006681]
[1764550732036,12.22841262,127.91,127.86,12.22841262]
[1764550732229,12.22841262,127.88,127.85,0.1]
[1764550732552,12.22841262,127.87,127.85,0.1]
[1764550732735,16.308864,127.86,127.85,0.1]
[1764550732937,29.23727662,127.86,127.85,0.1]
[1764550733239,17.008864,127.86,127.85,0.1]
[1764550733441,29.23727662,127.86,127.85,0.1]
[1764550734147,37.05833089,127.86,127.85,0.1]
[1764550734345,12.22841262,127.87,127.85,0.1]
[1764550734522,36.35771925,127.87,127.85,0.1]
[1764550734721,16.308864,127.87,127.85,0.76]
[1764550734925,16.308864,127.87,127.85,3.68]
[1764550735218,12.22841262,127.86,127.85,3.68]
[1764550735625,28.53727662,127.87,127.85,3.68]
[1764550736027,12.22841262,127.86,127.85,0.1]
[1764550736326,20.04946689,127.86,127.85,0.1]
[1764550736843,16.63099919,127.86,127.85,0.1]
[1764550737034,20.75946689,127.86,127.85,0.1]
[1764550737237,20.04946689,127.86,127.85,0.1]
[1764550737439,7.82105427,127.86,127.85,0.1]
[1764550737632,7.81997336,127.88,127.85,0.1]
[1764550737942,20.04838598,127.88,127.85,0.1]
[1764550738142,16.308864,127.89,127.85,0.1]
[1764550738143,7.81924533,127.89,127.85,0.82]
[1764550738348,36.35652195,127.89,127.85,0.82]
[1764550738922,36.35652195,127.89,127.86,20.04946689]
[1764550738923,16.308864,127.89,127.86,20.04946689]
[1764550739125,12.22841262,127.94,127.88,12.22841262]
[1764550739331,12.22841262,127.92,127.87,0.72]
[1764550739633,28.53727662,127.93,127.88,16.52841262]
[1764550739836,12.22841262,127.92,127.88,4.3]
[1764550740038,28.53727662,127.93,127.89,0.72]
[1764550740236,17.018864,127.93,127.87,12.22841262]
[1764550740544,7.81799702,127.91,127.89,1.0665]
[1764550740746,12.22841262,127.9,127.87,7.82040315]
[1764550741052,20.04640964,127.91,127.88,3.58]
[1764550741549,12.22841262,127.9,127.88,3.58]
[1764550741946,20.04707257,127.9,127.88,3.58]
[1764550742327,7.81865995,127.9,127.88,3.58]
[1764550743337,20.04707257,127.9,127.88,3.58]
[1764550743535,12.93841262,127.89,127.85,7.92162242]
[1764550743755,7.81865995,127.9,127.87,3.58]
[1764550744048,12.22841262,127.89,127.87,3.58]
[1764550744439,7.83590939,127.89,127.87,3.58]
[1764550744628,7.81865995,127.9,127.87,4.3]
[1764550745126,7.81616382,127.94,127.88,12.13590939]
[1764550745348,16.308864,127.92,127.88,12.13590939]
[1764550745544,15.65207321,127.94,127.89,8.55590939]
[1764550745850,7.81616382,127.94,127.9,7.83590939]
[1764550746029,15.65207321,127.94,127.9,0.72]
[1764550746351,27.37640437,127.94,127.91,3.58]
[1764550746550,7.83590939,127.93,127.91,3.58]
[1764550747256,7.83590939,127.93,127.87,8.54044263]
[1764550747462,7.83590939,127.93,127.9,3.58]
[1764550747831,35.84935898,127.94,127.9,3.58]
[1764550747832,7.83590939,127.92,127.9,3.58]
[1764550748351,15.65343932,127.92,127.9,3.58]
[1764550749257,39.06538551,128.0,127.91,8.55590939]
[1764550749455,7.83590939,127.99,127.94,7.83590939]
[1764550749748,7.83590939,127.99,127.95,3.58]
[1764550749749,7.83590939,127.98,127.95,3.58]
[1764550749952,7.83590939,127.97,127.92,8.55590939]
[1764550750128,7.83590939,127.96,127.93,3.58]
[1764550750328,15.65128255,127.96,127.93,3.58]
[1764550750554,35.18863797,127.96,127.91,7.83590939]
[1764550750725,35.18863797,127.96,127.87,16.308864]
[1764550750726,7.83590939,127.92,127.87,0.72]
[1764550750924,7.83590939,127.91,127.88,3.58]
[1764550751329,16.308864,127.93,127.89,0.72]
[1764550751526,7.83590939,127.91,127.89,0.72]
[1764550751743,7.83590939,127.9,127.86,0.72]
[1764550751942,7.83590939,127.88,127.87,3.58]
[1764550752533,7.83590939,127.89,127.87,3.58]
[1764550752932,8.80994492,127.92,127.88,0.72]
[1764550753145,7.83590939,127.92,127.88,0.72]
[1764550753957,0.71,127.95,127.88,8.55590939]
[1764550754161,7.83590939,127.97,127.92,7.83590939]
[1764550754358,7.83590939,127.98,127.94,7.81616382]
[1764550754739,7.83590939,127.99,127.95,0.72]
[1764550755256,24.14477339,127.99,127.95,0.72]
[1764550755457,27.34375,128.0,127.88,0.72]
[1764550755458,8.80994492,127.96,127.88,0.72]
[1764550755656,7.83590939,127.95,127.9,7.83590939]
[1764550755967,24.14477339,127.96,127.91,7.83590939]
[1764550756166,16.308864,127.96,127.91,7.83590939]
[1764550756456,16.308864,127.96,127.92,0.72]
[1764550756633,31.95976217,127.96,127.92,0.72]
[1764550756837,7.83590939,127.93,127.91,3.58]
[1764550757041,7.83590939,127.93,127.88,0.72]
[1764550757042,7.83590939,127.92,127.88,0.72]
[1764550757244,7.83590939,127.91,127.89,3.58]
[1764550757446,7.83590939,127.91,127.86,7.83590939]
[1764550757641,16.308864,127.93,127.85,0.1]
[1764550757642,7.83590939,127.87,127.85,0.1]
[1764550757935,7.83590939,127.87,127.86,3.58]
[1764550758139,7.83590939,127.87,127.86,4.3]
[1764550759169,7.83590939,127.87,127.86,12.12105427]
[1764550759341,7.83590939,127.87,127.86,3.58]
[1764550759536,7.83590939,127.87,127.85,7.92164514]
[1764550759537,7.83590939,127.87,127.85,0.1]
[1764550759739,24.20287305,127.86,127.85,0.1]
[1764550759948,7.83590939,127.8,127.79,4.3]
[1764550760261,7.83590939,127.8,127.79,3.58]
[1764550760434,7.83590939,127.8,127.77,0.72]
[1764550760634,7.83590939,127.78,127.77,0.72]
[1764550760854,7.83590939,127.78,127.77,4.3]
[1764550762564,7.82207582,127.85,127.77,12.12656335]
[1764550762765,19.5471656,127.9,127.79,7.83590939]
[1764550763066,7.83590939,127.84,127.8,3.58]
[1764550763370,7.83590939,127.85,127.81,3.58]
[1764550763571,7.83590939,127.85,127.81,4.3]
[1764550763748,7.83590939,127.85,127.82,8.54346566]
[1764550763967,7.83590939,127.85,127.8,7.82472613]
[1764550763968,7.83590939,127.83,127.8,7.82472613]
[1764550764186,7.83590939,127.83,127.81,3.58]
[1764550764388,7.83590939,127.82,127.77,20.24570761]
[1764550764571,0.67,127.83,127.81,3.58]
[1764550764963,27.37379819,127.86,127.81,3.58]
[1764550765169,0.67,127.85,127.81,3.58]
[1764550765665,7.83590939,127.83,127.81,3.58]
[1764550765868,0.67,127.85,127.81,3.58]
[1764550765869,7.83590939,127.82,127.81,3.58]
[1764550766090,7.83590939,127.83,127.81,3.58]
[1764550766484,15.65818723,127.84,127.81,4.27]
[1764550767102,7.83590939,127.9,127.83,7.83590939]
[1764550767268,7.83590939,127.88,127.84,3.58]
[1764550767673,7.83590939,127.88,127.85,3.58]
[1764550767978,15.65590612,127.88,127.85,3.58]
[1764550769108,8.48999673,127.88,127.86,3.58]
[1764550769276,7.83590939,127.87,127.85,3.58]
[1764550769474,7.83590939,127.86,127.85,3.58]
[1764550769672,7.83590939,127.86,127.81,0.69]
[1764550769981,7.83590939,127.86,127.8,7.82413819]
[1764550769982,7.83590939,127.84,127.82,3.58]
[1764550771379,15.65831603,127.84,127.82,3.58]
[1764550771581,7.83590939,127.84,127.82,4.27]
[1764550772011,7.83590939,127.85,127.82,4.27]
[1764550773100,15.65781261,127.85,127.82,4.27]
[1764550773608,35.21197764,127.85,127.79,0.69]
[1764550773803,7.83590939,127.82,127.79,0.69]
[1764550774012,7.83590939,127.81,127.8,3.58]
[1764550774208,7.83590939,127.81,127.78,0.69]
[1764550774409,7.83590939,127.8,127.79,3.58]
[1764550774789,8.50590939,127.8,127.74,0.1]
[1764550774987,7.83590939,127.77,127.75,3.58]
[1764550775188,15.66270212,127.77,127.74,0.1]
[1764550775496,7.83590939,127.75,127.74,3.68]
[1764550775696,7.83590939,127.75,127.74,0.1]
[1764550775886,8.50590939,127.75,127.74,0.1]
[1764550776292,8.50590939,127.75,127.63,4.77299246]
[1764550776293,16.308864,127.71,127.63,4.77299246]
[1764550776518,16.308864,127.71,127.64,8.52590939]
[1764550776814,7.83590939,127.71,127.66,7.83590939]
[1764550777005,7.83590939,127.76,127.67,7.83590939]
[1764550777006,7.83590939,127.72,127.67,7.83590939]
[1764550777313,7.83590939,127.73,127.68,3.58]
[1764550777498,7.83590939,127.73,127.68,12.10590939]
[1764550777702,7.83590939,127.73,127.69,0.69]
[1764550777901,7.83590939,127.72,127.69,0.69]
[1764550778215,7.83590939,127.73,127.7,3.58]
[1764550778414,7.83590939,127.73,127.7,4.27]
[1764550778793,7.83590939,127.75,127.71,0.69]
[1764550779007,7.83590939,127.77,127.72,7.83590939]
[1764550779208,7.83590939,127.84,127.74,7.83590939]
[1764550779406,7.83590939,127.81,127.76,7.83590939]
[1764550779607,7.83590939,127.83,127.75,3.58]
[1764550779904,7.83590939,127.82,127.77,7.83590939]
[1764550780418,7.83590939,127.82,127.78,0.69]
[1764550780725,7.83590939,127.8,127.76,0.69]
[1764550780908,7.83590939,127.8,127.77,3.58]
[1764550781311,7.83590939,127.8,127.77,3.77]
[1764550781913,15.66013678,127.81,127.77,3.77]
[1764550782224,7.83590939,127.83,127.78,8.52590939]
[1764550782422,7.83590939,127.81,127.78,0.69]
[1764550782720,43.68697273,127.84,127.79,3.58]
[1764550782936,7.83590939,127.83,127.79,12.10590939]
[1764550783109,7.83590939,127.82,127.79,4.27]
[1764550784833,15.65914703,127.83,127.81,3.58]
[1764550785406,15.65977193,127.82,127.78,7.82595085]
[1764550785616,7.83590939,127.81,127.79,3.58]
[1764550786424,15.65977193,127.82,127.79,4.27]
[1764550786634,7.83590939,127.82,127.79,4.27]
[1764550786836,7.83590939,127.83,127.8,0.69]
[1764550787006,7.83590939,127.82,127.8,0.69]
[1764550787203,7.83590939,127.83,127.8,0.69]
[1764550787409,15.65818723,127.84,127.8,0.69]
[1764550787730,7.83590939,127.83,127.81,3.58]
[1764550789314,15.65917156,127.83,127.81,3.58]
[1764550789519,7.82326217,127.83,127.81,3.58]
[1764550789721,15.65917156,127.83,127.81,3.58]
[1764550790029,15.658383,127.84,127.81,3.58]
[1764550790231,7.83590939,127.84,127.81,4.27]
[1764550790412,7.83590939,127.83,127.81,3.58]
[1764550790608,7.83590939,127.82,127.81,3.58]
[1764550791134,15.65941118,127.82,127.81,3.58]
[1764550791320,19.55569461,127.84,127.81,3.58]
[1764550791321,7.82257656,127.84,127.81,3.58]
[1764550791520,7.83590939,127.82,127.81,3.58]
[1764550791715,7.83590939,127.82,127.77,15.66236932]
[1764550791928,7.83590939,127.81,127.78,4.27]
[1764550792531,7.83590939,127.82,127.79,0.69]
[1764550792912,15.65962385,127.82,127.79,0.69]
[1764550793112,7.83590939,127.85,127.8,7.83590939]
[1764550793529,7.83590939,127.85,127.81,0.69]
[1764550793715,7.83590939,127.85,127.82,3.58]
[1764550793911,15.65764471,127.85,127.82,3.58]
[1764550794129,7.83590939,127.84,127.83,3.58]
[1764550794332,7.83590939,127.84,127.79,15.66099463]
[1764550794333,7.83590939,127.84,127.79,7.83590939]
[1764550794524,7.83590939,127.83,127.82,3.58]
[1764550794832,15.65912436,127.83,127.82,3.58]
[1764550795150,16.308864,127.82,127.76,3.58]
[1764550795319,7.83590939,127.77,127.72,0.69]
[1764550795520,7.83590939,127.74,127.7,7.83085356]
[1764550795833,7.83590939,127.73,127.71,3.58]
[1764550796013,7.83590939,127.74,127.71,3.58]
[1764550796214,25.11880892,127.78,127.7,0.67]
[1764550796414,7.83590939,127.71,127.67,0.67]
[1764550796630,7.83590939,127.7,127.68,3.58]
[1764550797020,7.83590939,127.69,127.64,0.67]
[1764550797221,7.83590939,127.67,127.65,3.58]
[1764550797425,7.83590939,127.68,127.65,3.58]
[1764550797658,7.83590939,127.68,127.63,7.83590939]
[1764550797659,16.308864,127.69,127.63,0.67]
[1764550797838,7.83590939,127.7,127.65,7.83590939]
[1764550798312,7.83590939,127.7,127.66,4.25]
[1764550798631,7.83590939,127.71,127.66,12.08590939]
[1764550798837,7.83590939,127.71,127.67,4.25]
[1764550799038,24.13894241,127.72,127.67,12.08590939]
[1764550799227,31.9748518,127.72,127.68,0.67]
[1764550799739,24.14477339,127.72,127.68,0.67]
[1764550799954,31.97456216,127.72,127.68,0.67]
[1764550800147,24.13865277,127.72,127.68,0.67]
[1764550800321,7.82978877,127.72,127.68,0.67]
[1764550800641,7.82978877,127.72,127.66,3.58]
[1764550800847,27.40385704,127.72,127.66,3.58]
[1764550801081,27.40385704,127.72,127.58,39.28857919]
[1764550801082,8.80994492,127.71,127.6,27.45248324]
[1764550801338,8.80994492,127.71,127.58,39.28857919]
[1764550801339,7.86068404,127.69,127.61,3.58]
[1764550801542,27.40385704,127.72,127.67,7.86068404]
[1764550801720,7.86068404,127.7,127.67,0.67]
[1764550801916,27.40385704,127.72,127.67,0.67]
[1764550801917,7.86068404,127.71,127.67,0.67]
[1764550802223,47.95241438,127.74,127.7,7.86068404]
[1764550802224,7.82898944,127.74,127.7,7.86068404]
[1764550802422,7.86068404,127.73,127.7,3.58]
[1764550802733,7.86068404,127.73,127.64,16.308864]
[1764550802734,7.82717595,127.76,127.72,7.86068404]
[1764550802940,7.82717595,127.76,127.73,7.86068404]
[1764550803140,7.82717595,127.76,127.73,8.53068404]
[1764550803338,7.82717595,127.76,127.73,0.67]
[1764550803727,7.82717595,127.76,127.73,4.25]
[1764550804037,7.82717595,127.76,127.73,0.67]
[1764550804344,7.8263531,127.78,127.74,12.96916013]
[1764550804728,7.8263531,127.78,127.74,0.67]
[1764550804924,7.8263531,127.78,127.73,11.40901432]
[1764550804925,19.55110659,127.87,127.77,12.29916013]
[1764550805133,12.29916013,127.84,127.8,12.29916013]
[1764550805334,39.10690092,127.86,127.8,12.96916013]
[1764550805540,27.37154922,127.87,127.83,12.29916013]
[1764550805744,27.37154922,127.87,127.78,3.58]
[1764550805745,12.29916013,127.84,127.8,3.58]
[1764550805923,12.29916013,127.83,127.8,3.58]
[1764550806129,12.29916013,127.83,127.79,3.58]
[1764550806431,8.80994492,127.86,127.79,15.87916013]
[1764550806764,66.4737624,127.87,127.79,15.87916013]
[1764550806765,7.82044263,127.87,127.84,12.29916013]
[1764550806942,20.11899122,127.88,127.84,3.58]
[1764550807273,12.29916013,127.87,127.82,16.54916013]
[1764550807551,16.308864,127.85,127.81,12.96916013]
[1764550807932,12.29916013,127.86,127.82,12.96916013]
[1764550808142,27.36940881,127.88,127.84,12.29916013]
[1764550808339,27.36940881,127.88,127.85,3.58]
[1764550808740,39.66856894,127.88,127.85,3.58]
[1764550808938,12.29916013,127.86,127.75,57.44780723]
[1764550809161,39.66856894,127.88,127.83,12.29916013]
[1764550809451,0.2,127.9,127.8,14.96916012]
[1764550809633,0.2,127.9,127.87,12.29916013]
[1764550809832,0.2,127.9,127.87,15.87916013]
[1764550810034,0.2,127.9,127.87,12.96916013]
[1764550810233,0.2,127.9,127.88,0.67]
[1764550810644,0.2,127.9,127.88,12.96916013]
[1764550811051,0.2,127.9,127.89,12.96916013]
[1764550811358,0.2,127.9,127.89,0.67]
[1764550811670,20.31776841,127.9,127.88,3.58]
[1764550811880,12.29916013,127.89,127.82,0.67]
[1764550812050,8.01860828,127.9,127.83,3.58]
[1764550812367,8.01860828,127.9,127.86,12.29916013]
[1764550812551,0.2,127.9,127.84,0.67]
[1764550812747,35.8482015,127.95,127.89,12.29916013]
[1764550813061,7.81616382,127.94,127.91,12.29916013]
[1764550813259,7.81616382,127.94,127.91,0.67]
[1764550813441,7.81616382,127.94,127.91,4.25]
[1764550814147,12.29916013,127.95,127.91,4.25]
[1764550814561,0.2,127.97,127.93,12.29916013]
[1764550814761,0.2,127.97,127.95,12.29916013]
[1764550814944,0.2,127.97,127.96,12.29916013]
[1764550815144,0.2,127.97,127.95,12.29916013]
[1764550815350,0.2,127.97,127.96,12.29916013]
[1764550815849,0.2,128.04,127.96,12.96916013]
[1764550815850,12.49916013,128.04,127.96,12.96916013]
[1764550816042,12.49916013,128.04,128.0,12.29916013]
[1764550816235,0.2,128.04,128.01,0.67]
[1764550816435,24.31903695,128.04,127.97,12.29916013]
[1764550816664,12.29916013,128.0,127.97,3.58]
[1764550817038,7.81311039,127.99,127.97,3.58]
[1764550817238,12.29916013,128.0,127.97,3.58]
[1764550817458,12.29916013,128.01,127.97,3.58]
[1764550817763,12.29916013,127.98,127.94,3.58]
[1764550817939,12.29916013,127.99,127.94,15.87916013]
[1764550818146,16.308864,128.01,127.95,0.67]
[1764550818470,12.29916013,127.99,127.95,0.67]
[1764550818764,16.308864,128.01,127.96,3.58]
[1764550818959,20.11166013,128.0,127.95,12.96916013]
[1764550819160,7.81201952,128.01,127.98,12.29916013]
[1764550819356,39.25328139,128.04,128.0,12.29916013]
[1764550819357,0.2,128.04,128.0,12.29916013]
[1764550819657,0.2,128.04,128.02,12.29916013]
[1764550820216,0.2,128.04,127.93,10.80994491]
[1764550820217,8.01005935,128.04,127.93,10.80994491]
[1764550820371,12.29916013,128.01,127.95,0.67]
[1764550820541,12.29916013,128.03,127.95,0.67]
[1764550820869,20.30921948,128.04,127.95,0.67]
[1764550821066,8.01005935,128.04,128.02,12.29916013]
[1764550821271,8.01005935,128.04,127.96,7.81494216]
[1764550821272,12.29916013,128.03,127.96,27.35229758]
[1764550821455,20.30921948,128.04,128.0,12.29916013]
[1764550821873,20.30921948,128.04,128.02,12.29916013]
[1764550821874,0.2,128.04,128.02,12.29916013]
[1764550822075,0.2,128.04,128.03,12.29916013]
[1764550822271,0.2,128.05,128.03,12.96916013]
[1764550822471,30.68460112,128.08,128.04,12.96916013]
[1764550822652,30.68460112,128.08,128.06,12.29916013]
[1764550822849,7.8077718,128.08,128.07,3.58]
[1764550823051,12.29916013,128.11,128.07,3.58]
[1764550823256,13.01916013,128.11,128.07,3.58]
[1764550823455,0.72,128.11,128.07,3.58]
[1764550823653,13.01916013,128.1,128.06,3.58]
[1764550823864,13.01916013,128.1,128.04,3.58]
[1764550823865,17.028864,128.1,128.04,3.58]
[1764550824066,66.34405244,128.12,128.0,12.29916013]
[1764550824067,12.29916013,128.05,128.0,12.29916013]
[1764550824268,12.29916013,128.04,127.99,16.54916013]
[1764550824572,16.308864,128.06,127.99,16.54916013]
[1764550824780,12.29916013,128.05,128.0,12.29916013]
[1764550825073,12.29916013,128.02,127.94,7.81571658]
[1764550825271,12.29916013,128.02,127.97,12.29916013]
[1764550825457,12.29916013,128.02,127.97,12.95916013]
[1764550825657,36.4186935,128.03,127.98,12.97916013]
[1764550825854,24.11953337,128.03,127.98,12.97916013]
[1764550826172,24.11953337,128.03,127.99,12.29916013]
[1764550826369,24.11953337,128.03,128.0,15.87916013]
[1764550826370,7.81066937,128.03,128.0,15.87916013]
[1764550826678,7.81066937,128.03,128.0,16.55916013]
[1764550827073,7.80985373,128.05,128.01,12.97916013]
[1764550827253,19.51600312,128.1,128.04,12.29916013]
[1764550827454,7.80640124,128.1,128.09,12.29916013]
[1764550827778,7.80640124,128.1,128.02,0.68]
[1764550827954,0.71,128.09,128.04,12.29916013]
[1764550828154,43.63126836,128.1,128.07,12.29916013]
[1764550828353,12.29916013,128.09,128.05,3.58]
[1764550828554,12.29916013,128.08,128.05,3.58]
[1764550828770,0.71,128.09,128.04,3.58]
[1764550828962,12.29916013,128.08,128.04,3.58]
[1764550829154,12.29916013,128.06,128.02,3.58]
[1764550829352,0.71,128.08,128.03,12.29916013]
[1764550829554,13.00916013,128.08,128.03,12.29916013]
[1764550829962,0.71,128.08,128.02,3.58]
[1764550830167,16.308864,128.1,128.02,11.39114513]
[1764550830355,1.99999999,128.14,128.08,12.29916013]
[1764550830356,19.50991103,128.14,128.08,12.29916013]
[1764550830679,16.308864,128.11,128.08,3.58]
[1764550830875,12.29916013,128.11,128.07,3.58]
[1764550831179,12.29916013,128.14,128.09,12.29916013]
[1764550831494,16.308864,128.12,128.09,12.29916013]
[1764550831857,12.29916013,128.1,128.04,0.68]
[1764550832051,12.29916013,128.09,128.05,3.58]
[1764550832260,7.80762023,128.08,128.05,3.58]
[1764550832479,7.80723442,128.09,128.05,16.55916013]
[1764550832697,12.29916013,128.08,127.96,1.99999999]
[1764550832988,12.29916013,128.07,128.02,12.29916013]
[1764550833175,12.29916013,128.07,127.99,0.68]
[1764550833176,12.29916013,128.05,127.99,0.68]
[1764550833380,12.29916013,128.03,127.98,12.29916013]
[1764550833673,12.29916013,128.03,127.89,12.29916013]
[1764550833674,12.29916013,128.0,127.96,3.58]
[1764550833972,12.29916013,128.0,127.93,7.81638861]
[1764550833973,12.29916013,127.98,127.93,15.87916013]
[1764550834169,0.71,128.02,127.89,0.68]
[1764550834170,7.81616382,127.94,127.89,0.68]
[1764550834475,12.29916013,127.92,127.85,0.68]
[1764550834672,12.29916013,127.92,127.87,12.29916013]
[1764550835182,12.29916013,127.91,127.86,3.58]
[1764550835382,16.308864,127.91,127.87,12.29916013]
[1764550835593,13.00916013,127.9,127.83,18.76]
[1764550835760,12.29916013,127.85,127.8,12.29916013]
[1764550835960,16.308864,127.88,127.79,12.29916013]
[1764550835961,12.29916013,127.84,127.79,12.29916013]
[1764550836261,12.29916013,127.86,127.81,12.29916013]
[1764550836464,24.12816354,127.89,127.85,14.09293134]
[1764550836679,0.71,127.93,127.87,14.09293134]
[1764550836871,24.8357676,127.93,127.89,14.09293134]
[1764550837054,16.308864,127.94,127.86,0.68]
[1764550837258,14.09293134,127.91,127.83,0.68]
[1764550837486,22.90287626,127.92,127.87,14.09293134]
[1764550837781,38.21811707,127.94,127.9,14.09293134]
[1764550837987,21.90925307,127.94,127.9,14.09293134]
[1764550838190,14.09293134,127.92,127.83,16.988864]